Workbook

Sheet Capital Gains
B2: Use this calculator by selecting your province and entering the total capital gain to see the effect of increased capital gains inclusion rate on or after June 25, 2024 | F2: Sample comparison of capital gains taxes payable prior to June 25, 2024 and increase on or after June 25, 2024
B3: Select province (from drop down menu) | C3: ON | F3: Gain Amount | G3: Existing gain rate | H3: Tax prior to June 25, 2024 | I3: Gain rate on capital gain up to $250,000 on or after June 25, 2024 | J3: Gain rate on capiutal gain over $250,000 on or after June 25, 2024 | K3: Tax on or after June 25, 2024 | L3: New Blended Gain Rate | M3: Difference ($) | N3: Difference (%)
B4: Enter Total Capital Gain (i.e. FMV - ACB of asset) | C4: 325000 | F4: 250000 | G4: =IF($C$3="BC",$U$8*$C$10, IF($C$3="AB",$U$9*$C$10, IF($C$3="SK",$U$10*$C$10, IF($C$3="MB", $U$11*$C$10, IF($C$3="ON",$U$12*$C$10, IF($C$3="QC", $U$13*$C$10, IF($C$3="NB", $U$14*$C$10, IF($C$3="NS", $U$15*$C$10, IF($C$3="PEI", $U$16*$C$10, IF($C$3="NL", $U$17*$C$10,IF($C$3="YK",$U$18*$C$10,IF($C$3="NWT",$U$19*$C$10,IF($C$3="NU",$U$20*$C$10, "Choose Province"))))))))))))) -> 0.26765 | H4: =F4*G4 -> 66912.5 | I4: =G4 -> 0.26765 | J4: =IF($C$3="BC",$U$8*$C$11, IF($C$3="AB",$U$9*$C$11, IF($C$3="SK",$U$10*$C$11, IF($C$3="MB", $U$11*$C$11, IF($C$3="ON",$U$12*$C$11, IF($C$3="QC", $U$13*$C$11, IF($C$3="NB", $U$14*$C$11, IF($C$3="NS", $U$15*$C$11, IF($C$3="PEI", $U$16*$C$11, IF($C$3="NL", $U$17*$C$11,IF($C$3="YK",$U$18*$C$11,IF($C$3="NWT",$U$19*$C$11,IF($C$3="NU",$U$20*$C$11, "Choose Province"))))))))))))) -> 0.356866631 | K4: =(250000*G4)+((F4-250000)*J4) -> 66912.5 | L4: =K4/F4 -> 0.26765 | M4: =K4-H4 -> 0 | N4: =M4/F4 -> 0
F5: 300000 | G5: 0.26765 | H5: =F5*G5 -> 80295 | I5: =G5 -> 0.26765 | J5: 0.356866631 | K5: =(250000*G5)+((F5-250000)*J5) -> 84755.83155 | L5: =K5/F5 -> 0.2825194385 | M5: =K5-H5 -> 4460.831549 | N5: =M5/F5 -> 0.0148694385
F6: 400000 | G6: 0.26765 | H6: 107060 | I6: 0.26765 | J6: 0.356866631 | K6: 120442.4946 | L6: 0.3011062366 | M6: 13382.49465 | N6: 0.03345623662
B7: Results | F7: 500000 | G7: 0.26765 | H7: 133825 | I7: 0.26765 | J7: 0.356866631 | K7: 156129.1577 | L7: 0.3122583155 | M7: 22304.15775 | N7: 0.04460831549 | T7: Province | U7: Personal MTR
B8: Highest Marginal tax Rate | C8: =IF($C$3="BC",U8, IF($C$3="AB",U9, IF($C$3="SK",U10, IF($C$3="MB", U11, IF($C$3="ON",U12, IF($C$3="QC", U13, IF($C$3="NB", U14, IF($C$3="NS", U15, IF($C$3="PEI", U16, IF($C$3="NL", U17,IF($C$3="YK",U18,IF($C$3="NWT",U19,IF($C$3="NU",U20, "Choose Province"))))))))))))) -> 0.5353 | F8: 600000 | G8: 0.26765 | H8: 160590 | I8: 0.26765 | J8: 0.356866631 | K8: 191815.8208 | L8: 0.3196930347 | M8: 31225.82084 | N8: 0.05204303474 | T8: BC | U8: 0.535
B9: Capital Gains Inclusion Rates | F9: 700000 | G9: 0.26765 | H9: 187355 | I9: 0.26765 | J9: 0.356866631 | K9: 227502.4839 | L9: 0.3250035485 | M9: 40147.48394 | N9: 0.05735354849 | T9: AB | U9: 0.48
B10: Capital Gains Inclusion Rate prior to June 25, 2024 | C10: 0.5 | F10: 800000 | G10: 0.26765 | H10: 214120 | I10: 0.26765 | J10: 0.356866631 | K10: 263189.147 | L10: 0.3289864338 | M10: 49069.14704 | N10: 0.0613364338 | T10: SK | U10: 0.475
B11: Capital Gains Inclusion Rate over $250k on or after June 25, 2024 | C11: 0.6666666 | F11: 900000 | G11: 0.26765 | H11: 240885 | I11: 0.26765 | J11: 0.356866631 | K11: 298875.8101 | L11: 0.3320842335 | M11: 57990.81014 | N11: 0.06443423349 | T11: MB | U11: 0.504
B12: Taxes prior to June 25, 2024 | F12: 1000000 | G12: 0.26765 | H12: 267650 | I12: 0.26765 | J12: 0.356866631 | K12: 334562.4732 | L12: 0.3345624732 | M12: 66912.47323 | N12: 0.06691247323 | T12: ON | U12: 0.5353
B13: Tax rate on taxable capital gains prior to June 25, 2024 | C13: =C8*C10 -> 0.26765 | F13: 1250000 | G13: 0.26765 | H13: 334562.5 | I13: 0.26765 | J13: 0.356866631 | K13: 423779.131 | L13: 0.3390233048 | M13: 89216.63098 | N13: 0.07137330478 | T13: QC | U13: 0.5331
B14: Tax prior to June 25, 2024 | C14: =C4*C10*C8 -> 86986.25 | F14: 1500000 | G14: 0.26765 | H14: 401475 | I14: 0.26765 | J14: 0.356866631 | K14: 512995.7887 | L14: 0.3419971925 | M14: 111520.7887 | N14: 0.07434719248 | T14: NB | U14: 0.525
B15: Taxes on or after June 25, 2024 | F15: 1750000 | G15: 0.26765 | H15: 468387.5 | I15: 0.26765 | J15: 0.356866631 | K15: 602212.4465 | L15: 0.344121398 | M15: 133824.9465 | N15: 0.07647139798 | T15: NS | U15: 0.54
B16: Tax on first $250,000 of gain after June 25, 2024 | C16: =IF(C4<250000, (C4*C10*C8),(250000*C10*C8)) -> 66912.5 | F16: 2000000 | G16: 0.26765 | H16: 535300 | I16: 0.26765 | J16: 0.356866631 | K16: 691429.1042 | L16: 0.3457145521 | M16: 156129.1042 | N16: 0.07806455211 | T16: PEI | U16: 0.5175
B17: Tax on gain over $250,000 on or after June 25, 2024 | C17: =IF(C4<250000,0,(C4-250000)*C11*C8) -> 26764.99732 | F17: 3000000 | G17: 0.26765 | H17: 802950 | I17: 0.26765 | J17: 0.356866631 | K17: 1048295.735 | L17: 0.3494319117 | M17: 245345.7352 | N17: 0.08178191173 | T17: NL | U17: 0.548
B18: Total taxes on capital gain on or after June 25, 2024 | C18: =SUM(C16:C17) -> 93677.49732 | F18: 4000000 | G18: 0.26765 | H18: 1070600 | I18: 0.26765 | J18: 0.356866631 | K18: 1405162.366 | L18: 0.3512905915 | M18: 334562.3662 | N18: 0.08364059154 | T18: YK | U18: 0.48
B19: Blended tax rate on or after June 25, 2024 | F19: 5000000 | G19: 0.26765 | H19: 1338250 | I19: 0.26765 | J19: 0.356866631 | K19: 1762028.997 | L19: 0.3524057994 | M19: 423778.9972 | N19: 0.08475579943 | T19: NWT | U19: 0.4705
B20: Blended Tax Rate for capital gains on or after June 25, 2024 | C20: =C18/C4 -> 0.2882384533 | T20: NU | U20: 0.445
B21: Increased tax result on or after June 25, 2024
B22: Increase in taxes on or after June 25, 2024 ($) | C22: =C18-C14 -> 6691.247323 | F22: Assumptions
B23: Increase in taxes on or after June 25, 2024 (%) | C23: =(C18-C14)/C4 -> 0.0205884533 | F23: Client is already in the highest marginal tax rate for their province or territory
F24: Does not take into account transaction fees (legal, accounting, land transfer tax, commissions, etc.)
F25: Based on proposed changes as announced on April 16, 2024 in Federal Budget 2024
F26: Assumes the capital gain is realized personally and represents total capital gain (not just taxable capital gain)
B28: Disclaimer This document provides general information only. Sun Life Assurance Company of Canada does not provide legal, accounting or taxation advice to advisors or Clients. Before you act on any of the information contained in this article make sure you seek advice from a qualified professional, including a thorough examination of your specific legal, accounting and tax situation. Any examples or illustrations in this article are included solely to help clarify the information presented in this article, and should not be relied on in any transaction. Published and revised by: Estate & Financial Planning Services Last revised: April 2024 © Sun Life Assurance Company of Canada, 2024. Sun Life Assurance Company of Canada is a member of the Sun Life group of companies.
